fUSD/lending_fUSD_20240114
["ID","MTS","AMOUNT","RATE_DAILY","PERIOD"]
[311610023,1705264379766,-246.71680154,0.0002211,2]
[311610024,1705264379786,-163.7690261,0.0002211,2]
[311610025,1705264379806,-192.14041212,0.0002211,2]
[311610026,1705264379826,-184.02329883,0.0002211,2]
[311610027,1705264379846,-1429.55505232,0.0002211,2]
[311610028,1705264379866,-1278.13193774,0.0002211,2]
[311610029,1705264379885,-206.79487175,0.0002211,2]
[311610030,1705264379905,-156.84105949,0.0002211,2]
[311610031,1705264379925,-155.0,0.0002211,2]
[311610032,1705264379945,-198.6778953,0.0002211,2]
[311610033,1705264379965,-522.61370155,0.0002211,2]
[311610034,1705264379986,-364.99858209,0.0002211,2]
[311610035,1705264380007,-215.73359013,0.0002211,2]
[311610036,1705264380027,-3052.3554378,0.00022111,2]
[311610037,1705264380048,-155.0,0.00022111,2]
[311610038,1705264380070,-7235.86188313,0.00022111,2]
[311610039,1705264380092,-113522.095456,0.00022112,2]
[311610040,1705264382700,39789.9313,0.00022006,2]
[311610041,1705264382959,220.25566127,0.0002189,2]
[311610042,1705264383554,1000.0,0.00022015,2]
[311610043,1705264384309,222.85199524,0.00021889,4]
[311610044,1705264384434,2116.1261,0.00022015,2]
[311610045,1705264385166,697.37000914,0.00021889,2]
[311610046,1705264386437,23123.82869602,0.00022005,2]
[311610047,1705264389534,150.0,0.00021113,2]
[311610048,1705264389749,150.0,0.00021661,2]
[311610049,1705264390009,2000.0,0.00021642,2]
[311610050,1705264391367,100000.0,0.00022005,2]
[311610051,1705264391893,11970.2357,0.00022005,2]
[311610052,1705264392360,2500.0,0.00022015,2]
[311610053,1705264392733,3834.2602,0.00022003,2]
[311610054,1705264393458,2705.0,0.00021171,2]
[311610055,1705264396594,509.02,0.00021374,2]
[311610056,1705264396632,509.02,0.00021487,2]
[311610057,1705264396680,509.02,0.00021599,2]
[311610058,1705264396760,509.02,0.00021712,2]
[311610059,1705264396810,509.02,0.00021824,2]
[311610060,1705264396852,509.02,0.00021937,2]
[311610061,1705264396925,509.02,0.00022049,2]
[311610062,1705264397573,150.0,0.00022002,2]
[311610063,1705264400684,279.72320821,0.00022011,2]
[311610064,1705264401349,157.19540884,0.00021996,2]
[311610065,1705264401757,1000.0,0.00022014,2]
[311610066,1705264402122,279.72320819,0.00022021,2]
[311610067,1705264403954,570.21817476,0.00021888,2]
[311610068,1705264403978,6000.0,0.00021888,2]
[311610069,1705264403998,6000.0,0.00021888,2]
[311610070,1705264404019,6000.0,0.00021888,2]
[311610071,1705264404040,6000.0,0.00021888,2]
[311610072,1705264404060,6000.0,0.00021888,2]
[311610073,1705264404082,34349.78182524,0.00021888,2]
[311610074,1705264407129,279.72320819,0.00022031,2]
[311610075,1705264412139,279.72320819,0.00022041,2]
[311610076,1705264417230,279.72320819,0.00022051,2]
[311610077,1705264422145,279.72320819,0.00022061,2]
[311610078,1705264427104,279.72320819,0.00022071,2]
[311610079,1705264432120,279.72320819,0.00022081,2]
[311610080,1705264437127,279.72320819,0.00022091,2]
[311610081,1705264437247,3185.21463735,0.00021221,2]
[311610082,1705264442960,419.33476208,0.00021221,2]
[311610083,1705264453983,616.97420109,0.00019674,2]
[311610084,1705264455233,347.8505,0.00021221,2]
[311610085,1705264466818,216.63129953,0.00022009,2]
[311610086,1705264474417,282.69873682,0.0002201,2]
[311610087,1705264483681,833.587281,0.0002201,2]
[311610088,1705264484495,155.0,0.00021994,2]
[311610089,1705264486683,845.7445827,0.00022007,2]
[311610090,1705264488609,845.74458267,0.00022007,2]
[311610091,1705264488867,221.87285142,0.00022007,2]
[311610092,1705264490837,845.74458267,0.00022008,2]
[311610093,1705264490875,64295.0253,0.00022008,2]
[311610094,1705264492702,845.74458267,0.00022008,2]
[311610095,1705264494675,845.74458267,0.00022008,2]
[311610096,1705264497075,1000.0,0.00022008,2]
[311610097,1705264502426,215.397955,0.00022081,2]
[311610098,1705264504497,190.94965879,0.00021993,2]
[311610099,1705264507839,811.16,0.00021471,2]
[311610100,1705264509050,434.4656,0.00022008,2]
[311610101,1705264518425,215.397955,0.0002208,2]
[311610102,1705264520247,636.24969547,0.00022007,2]
[311610103,1705264534006,205.0,0.000213,2]
[311610104,1705264536411,215.397955,0.00022079,2]
[311610105,1705264537910,169.39707256,0.00022006,2]
[311610106,1705264541748,6504.0,0.00022098,2]
[311610107,1705264542327,169.66136035,0.00022004,2]
[311610108,1705264542685,166.36,0.00021166,2]
[311610109,1705264549024,494.2607926,0.0002188,2]
[311610110,1705264552419,245.40639976,0.00022079,2]
[311610111,1705264558402,1000.0,0.00022008,2]
[311610112,1705264561670,300.0,0.00022099,2]
[311610113,1705264562817,150.0,0.00022099,2]
[311610114,1705264566696,5427.33,0.00021918,2]
[311610115,1705264570116,10548.52020323,0.00022099,2]
[311610116,1705264584991,546.72,0.00019235,2]
[311610117,1705264585388,546.72,0.00021499,2]
[311610118,1705264596426,196.79653433,0.00022098,2]
[311610119,1705264598414,1428.03589514,0.00022098,2]
[311610120,1705264599355,2318.12607023,0.00022098,2]
[311610121,1705264602622,4623.14199213,0.00022098,2]
[311610122,1705264610383,196.79653433,0.00022099,2]
[311610123,1705264614411,1428.03589514,0.00022098,2]
[311610124,1705264614854,254.49,0.00021144,2]
[311610125,1705264619358,2315.6460813,0.00022098,2]
[311610126,1705264622232,216.63129953,0.00022001,2]
[311610127,1705264624624,1004.47503765,0.00022098,2]
[311610128,1705264628942,5335.54005472,0.0002209,2]
[311610129,1705264630425,1454.05660519,0.00022098,2]
[311610130,1705264636606,155.67422814,0.00022098,2]
[311610131,1705264639333,1056229.48459927,0.00022099,2]
[311610132,1705264648148,477.28,0.00021301,2]
[311610133,1705264656059,189.42,0.00021514,2]
[311610134,1705264656464,424.16646366,0.00022001,2]
[311610135,1705264656578,189.42,0.00021727,2]
[311610136,1705264656788,189.42,0.0002194,2]
[311610137,1705264663531,555.724854,0.00022001,2]
[311610138,1705264670383,157.27,0.00021451,2]
[311610139,1705264670606,157.27,0.0002173,2]
[311610140,1705264670814,157.27,0.0002201,2]
[311610141,1705264702411,156.5682,0.00022,2]
[311610142,1705264724609,176.17,0.00021101,2]
[311610143,1705264725891,283.58547597,0.00021649,2]
[311610144,1705264740898,1402.8155,0.00022002,2]
[311610145,1705264741544,176.31,0.00021299,2]
[311610146,1705264742388,150.0,0.00022098,2]
[311610147,1705264744166,205.0,0.000213,2]
[311610148,1705264749203,176.74,0.00021299,2]
[311610149,1705264767911,216.63129953,0.00022,2]
[311610150,1705264780349,1056229.48459927,0.00022098,2]
[311610151,1705264791964,282.77764244,0.00022,2]
[311610152,1705264795175,151.49,0.00021456,2]
[311610153,1705264795395,151.49,0.00021992,2]
[311610154,1705264796364,1056229.48459927,0.00022098,2]
[311610155,1705264797683,353.73,0.00021482,2]
[311610156,1705264814378,1056229.48459927,0.00022098,2]
[311610157,1705264824935,2392.0219,0.00022,2]
[311610158,1705264827794,256831.2028,0.00022,2]
[311610159,1705264829008,2000.0,0.0002149,2]
[311610160,1705264840664,42970.8731581,0.00022098,2]
[311610161,1705264862457,19103.51340578,0.00022098,2]
[311610162,1705264922127,150.0,0.00022098,2]
[311610163,1705264927312,188.51842828,0.00022,2]
[311610164,1705264929255,250.0,0.00022098,2]
[311610165,1705264930920,3912.00431973,0.00022,2]
[311610166,1705264977165,813.9,0.00021397,2]
[311610167,1705265043006,167.83,0.00021394,2]
[311610168,1705265045231,492.04,0.00019476,2]
[311610169,1705265048121,492.04,0.0002174,2]
[311610170,1705265103985,150.0,0.00022082,2]
[311610171,1705265123305,155.0,0.00022098,2]
[311610172,1705265126457,155.0,0.00022098,2]
[311610173,1705265128007,384.34681583,0.00022098,2]
[311610174,1705265129318,3300.0,0.00021879,2]
[311610175,1705265133412,532.51217277,0.00022098,2]
[311610176,1705265133873,842.51048405,0.00022098,2]
[311610177,1705265136818,258.59152982,0.00022098,2]
[311610178,1705265137270,472.92249472,0.00022098,2]
[311610179,1705265138812,155.0,0.00022098,2]
[311610180,1705265139485,162.22176007,0.00022098,2]
[311610181,1705265141299,155.0,0.00022098,2]
[311610182,1705265141412,153.23,0.00021546,2]
[311610183,1705265141575,1202.71070965,0.00022098,2]
[311610184,1705265141829,153.23,0.00021686,2]
[311610185,1705265142266,153.23,0.00021826,2]
[311610186,1705265142489,153.23,0.00021967,2]
[311610187,1705265147110,604.93182805,0.00022098,2]
[311610188,1705265147773,784.5673628,0.00022098,2]
[311610189,1705265149268,471.47097779,0.00022098,2]
[311610190,1705265152686,155.0,0.00022098,2]
[311610191,1705265154441,171.76196132,0.00022098,2]
[311610192,1705265157938,158.68234382,0.00022098,2]
[311610193,1705265161222,491.5560212,0.00022001,2]
[311610194,1705265161565,479.09505147,0.00022098,2]
[311610195,1705265162562,491.55602118,0.00022002,2]
[311610196,1705265163806,491.55602118,0.00022002,2]
[311610197,1705265167612,929.47,0.00022021,2]
[311610198,1705265170707,157.92900519,0.00022098,2]
[311610199,1705265172413,171.76196132,0.00022098,2]
[311610200,1705265173280,2899.70304819,0.00022098,2]
[311610201,1705265173967,158.14524073,0.00022098,2]
[311610202,1705265179070,4484.49790015,0.00022098,2]
[311610203,1705265179962,269.80513324,0.00022098,2]
[311610204,1705265181057,155.0,0.00022098,2]
[311610205,1705265188780,314.06282553,0.00022098,2]
[311610206,1705265189255,2901.32747944,0.00022098,2]
[311610207,1705265195921,269.80513324,0.00022098,2]
[311610208,1705265196985,263.56685992,0.00022098,2]
[311610209,1705265197072,4310.02565067,0.00022098,2]
[311610210,1705265204111,313.24557109,0.00022098,2]
[311610211,1705265207191,411.36312889,0.00022098,2]
[311610212,1705265243109,-645.41150069,0.00022099,2]
[311610213,1705265243129,-758.41453335,0.00022099,2]
[311610214,1705265243150,-4098.30382265,0.00022099,2]
[311610215,1705265251848,176.86,0.00022095,2]
[311610216,1705265253615,205.0,0.00021337,2]
[311610217,1705265255386,758.41453335,0.00022098,2]
[311610218,1705265263380,1288.5476,0.00022,2]
[311610219,1705265266516,150.13,0.00022079,2]
[311610220,1705265279395,437.32192747,0.00022098,2]
[311610221,1705265282172,150.0,0.00022098,2]
[311610225,1705265372107,327.8738,0.00021999,2]
[311610226,1705265373714,205.0,0.00021337,2]
[311610227,1705265386238,3668.47149157,0.00022002,2]
[311610241,1705265432004,-2187.5969182,0.00022099,2]
[311610242,1705265432016,-500.00098521,0.00022099,2]
[311610243,1705265432028,-965.59701297,0.00022099,2]
[311610244,1705265432134,-2965.19430304,0.00022099,2]
[311610245,1705265432182,-23016.98577487,0.00022099,2]
[311610246,1705265432191,-3754.35687669,0.000221,2]
[311610247,1705265432200,-285.19932083,0.000221,2]
[311610248,1705265432210,-235.19352569,0.000221,2]
[311610249,1705265432219,-317.07020554,0.000221,2]
[311610250,1705265432228,-523.20663738,0.000221,2]
[311610251,1705265432237,-278.93891862,0.000221,2]
[311610252,1705265432247,-19000.90173546,0.000221,2]
[311610253,1705265432256,-234.11386093,0.000221,2]
[311610254,1705265432265,-400.25276388,0.000221,2]
[311610255,1705265432275,-155.0,0.000221,2]
[311610256,1705265432284,-310.24821937,0.000221,2]
[311610257,1705265432293,-367.80860718,0.000221,2]
[311610258,1705265432302,-244.75352941,0.000221,2]
[311610259,1705265432312,-169.10257537,0.000221,2]
[311610260,1705265432321,-628.42706181,0.000221,2]
[311610261,1705265432332,-215.5633422,0.000221,2]
[311610262,1705265432341,-310.82733494,0.000221,2]
[311610263,1705265432350,-279.12829381,0.000221,2]
[311610264,1705265432360,-155.0,0.000221,2]
[311610265,1705265432369,-241.80971217,0.000221,2]
[311610266,1705265432378,-401.59293926,0.000221,2]
[311610268,1705265432388,-155.97034652,0.000221,2]
[311610270,1705265432397,-2137.87268645,0.000221,2]
[311610272,1705265432407,-155.0376638,0.000221,2]
[311610274,1705265432416,-2618.24633513,0.000221,2]
[311610276,1705265432425,-764.1829097,0.000221,2]
[311610278,1705265432435,-201.31667853,0.000221,2]
[311610280,1705265432444,-2612.76863363,0.000221,2]
[311610282,1705265432454,-4269.32574779,0.000221,2]
[311610284,1705265432463,-188.95625647,0.000221,2]
[311610285,1705265432473,-333.79010136,0.000221,2]
[311610286,1705265432482,-2618.09134251,0.000221,2]
[311610287,1705265432491,-476.29501779,0.000221,2]
[311610288,1705265432501,-447.65858949,0.000221,2]
[311610289,1705265432511,-161.64433472,0.000221,2]
[311610290,1705265432521,-1580.12321694,0.000221,2]
[311610291,1705265432566,-2276.7039333,0.000221,2]
[311610292,1705265432575,-157.15232908,0.000221,2]
[311610293,1705265432586,-500.00466881,0.000221,2]
[311610294,1705265432596,-198.80388018,0.000221,2]
[311610295,1705265432605,-229.73352064,0.000221,2]
[311610296,1705265432615,-650.38547112,0.000221,2]
[311610297,1705265432624,-189.81848372,0.000221,2]
[311610298,1705265432634,-291.07829072,0.000221,2]
[311610299,1705265432643,-1888.88421576,0.000221,2]
[311610300,1705265432652,-207.25470025,0.000221,2]
[311610301,1705265432661,-156.07376851,0.000221,2]
[311610302,1705265432671,-155.0,0.000221,2]
[311610303,1705265432680,-155.54154941,0.000221,2]
[311610304,1705265432690,-167.36261621,0.000221,2]
[311610305,1705265432699,-155.61243303,0.000221,2]
[311610306,1705265432709,-523.58449934,0.000221,2]
[311610307,1705265432718,-267.65615118,0.000221,2]
[311610308,1705265432727,-178.26442698,0.000221,2]
[311610309,1705265432736,-195.57844609,0.000221,2]
[311610310,1705265432745,-1255.31698243,0.000221,2]
[311610311,1705265432755,-439.17828871,0.000221,2]
[311610312,1705265432763,-276.45356326,0.000221,2]
[311610313,1705265432773,-360.45961298,0.000221,2]
[311610314,1705265432783,-196.42218781,0.000221,2]
[311610315,1705265432792,-220.63832879,0.000221,2]
[311610316,1705265432801,-198.90112594,0.000221,2]
[311610317,1705265432810,-384.34681583,0.000221,2]
[311610318,1705265432819,-37606.10918003,0.00022101,2]
[311610319,1705265432830,-845.57824049,0.00022101,2]
[311610320,1705265432841,-416.20481186,0.00022101,2]
[311610321,1705265437985,-2591.63690522,0.00022101,2]
[311610322,1705265438021,-390.66465533,0.00022101,2]
[311610323,1705265438030,-196158.57557502,0.00022102,2]
[311610324,1705265438051,-24318.68346496,0.00022102,2]
[311610325,1705265438063,-1541.09121438,0.00022102,2]
[311610326,1705265438075,-61713.47974564,0.00022102,2]
[311610327,1705265438086,-581.48502557,0.00022102,2]
[311610328,1705265438095,-2143.98939105,0.00022102,2]
[311610329,1705265438104,-939.95776854,0.00022103,2]
[311610330,1705265438114,-1708.02080546,0.00022103,2]
[311610331,1705265438123,-3326.78039808,0.00022104,2]
[311610332,1705265438132,-152405.47973751,0.00022104,2]
[311610333,1705265438142,-9999.99,0.00022104,2]
[311610334,1705265438151,-517.26,0.00022104,2]
[311610335,1705265438161,-1040.94397812,0.00022105,2]
[311610336,1705265438170,-1654.74,0.00022105,2]
[311610337,1705265438179,-499.99,0.00022105,2]
[311610338,1705265438189,-13830.62,0.00022105,2]
[311610339,1705265438198,-10764.71,0.00022105,2]
[311610340,1705265438208,-923.28,0.00022105,2]
[311610341,1705265438217,-999.99,0.00022105,2]
[311610342,1705265438226,-1658.07,0.00022105,2]
[311610343,1705265438236,-156.83582838,0.00022107,2]
[311610344,1705265438246,-3322.69,0.00022107,2]
[311610345,1705265438255,-150.99,0.00022107,2]
[311610346,1705265438265,-3573.35,0.00022107,2]
[311610347,1705265438274,-4914.56,0.00022107,2]
[311610348,1705265438284,-542.55,0.00022107,2]
[311610349,1705265438293,-153.23,0.00022107,2]
[311610350,1705265438303,-150.0,0.0002211,2]
[311610351,1705265438313,-314.34,0.0002211,2]
[311610352,1705265438323,-150.0,0.0002211,2]
[311610353,1705265438333,-491.61,0.0002211,2]
[311610354,1705265438342,-150.0,0.0002211,2]
[311610355,1705265438352,-150.0,0.0002211,2]
[311610356,1705265438361,-150.0,0.0002211,2]
[311610357,1705265438371,-150.0,0.0002211,2]
[311610358,1705265438380,-150.0,0.0002211,2]
[311610359,1705265438389,-150.0,0.0002211,2]
[311610361,1705265438399,-300.0,0.0002211,2]
[311610363,1705265438408,-940.47,0.0002211,2]
[311610365,1705265438417,-940.47,0.0002211,2]
[311610367,1705265438426,-940.47,0.0002211,2]
[311610369,1705265438435,-150.0,0.0002211,2]
[311610371,1705265438444,-940.47,0.0002211,2]
[311610373,1705265438453,-150.0,0.0002211,2]
[311610375,1705265438463,-150.0,0.0002211,2]
[311610377,1705265438473,-940.47,0.0002211,2]
[311610379,1705265438482,-408.24,0.0002211,2]
[311610380,1705265438491,-401.38,0.0002211,2]
[311610382,1705265438500,-150.0,0.0002211,2]
[311610384,1705265438509,-940.47,0.0002211,2]
[311610386,1705265438519,-150.0,0.0002211,2]
[311610388,1705265438528,-408.24,0.0002211,2]
[311610390,1705265438537,-940.47,0.0002211,2]
[311610393,1705265438547,-150.0,0.0002211,2]
[311610395,1705265438556,-401.38,0.0002211,2]
[311610397,1705265438565,-940.47,0.0002211,2]
[311610399,1705265438574,-408.24,0.0002211,2]
[311610401,1705265438583,-150.0,0.0002211,2]
[311610402,1705265438592,-401.38,0.0002211,2]
[311610403,1705265438601,-150.0,0.0002211,2]
[311610404,1705265438611,-408.24,0.0002211,2]
[311610405,1705265438620,-408.24,0.0002211,2]
[311610406,1705265438629,-369.92,0.0002211,2]
[311610407,1705265438638,-408.24,0.0002211,2]
[311610408,1705265438647,-627.78,0.0002211,2]
[311610409,1705265438655,-150.0,0.0002211,2]
[311610410,1705265438664,-408.24,0.0002211,2]
[311610411,1705265438673,-150.0,0.0002211,2]
[311610412,1705265438682,-379.31,0.0002211,2]
[311610414,1705265438691,-408.24,0.0002211,2]
[311610416,1705265438700,-150.0,0.0002211,2]
[311610418,1705265438709,-408.24,0.0002211,2]
[311610420,1705265438718,-408.24,0.0002211,2]
[311610422,1705265438727,-408.24,0.0002211,2]
[311610424,1705265438737,-408.24,0.0002211,2]
[311610426,1705265438746,-408.24,0.0002211,2]
[311610428,1705265438755,-155.0,0.0002211,2]
[311610430,1705265438764,-5183.28447778,0.0002211,2]
[311610432,1705265438773,-532.01558641,0.0002211,2]
[311610434,1705265438783,-207.28904547,0.0002211,2]
[311610436,1705265438793,-404.36592255,0.00022112,2]
[311610438,1705265438802,-156.80437612,0.00022112,2]
[311610440,1705265438810,-406.38358877,0.00022112,2]
[311610442,1705265438820,-204.85167273,0.00022112,2]
[311610444,1705265438829,-24327.1934238,0.00022112,2]
[311610446,1705265438839,-159.11585114,0.00022112,2]
[311610448,1705265438848,-317.63343826,0.00022112,2]
[311610450,1705265438858,-155.0,0.00022112,2]
[311610452,1705265438867,-207.56937403,0.00022112,2]
[311610454,1705265438876,-3001.53867376,0.00022112,2]
[311610456,1705265438886,-318.31330327,0.00022112,2]
[311610458,1705265438895,-312.26437051,0.00022112,2]
[311610460,1705265438904,-1041.73814922,0.00022112,2]
[311610462,1705265438914,-155.0,0.00022113,2]
[311610464,1705265438923,-211.05258382,0.00022113,2]
[311610466,1705265438932,-189.42,0.00022153,2]
[311610468,1705265438941,-509.02,0.00022162,2]
[311610470,1705265438950,-150.0,0.00022209,2]
[311610472,1705265438958,-153.23,0.00022247,2]
[311610474,1705265438967,-509.02,0.00022274,2]
[311610476,1705265438976,-150.0,0.000223,2]
[311610478,1705265438987,-314.34,0.000223,2]
[311610480,1705265438997,-150.0,0.000223,2]
[311610482,1705265439007,-314.34,0.000223,2]
[311610484,1705265439016,-150.0,0.000223,2]
[311610487,1705265439025,-314.34,0.000223,2]
[311610489,1705265439035,-817.43473583,0.00022307,2]
[311610491,1705265439044,-189.42,0.00022366,2]
[311610493,1705265439053,-157.81,0.00022372,2]
[311610495,1705265439062,-813.9,0.00022376,2]
[311610497,1705265439072,-509.02,0.00022387,2]
[311610499,1705265439082,-153.23,0.00022388,2]
[311610501,1705265439091,-2000.0,0.00022388,2]
[311610503,1705265439100,-300.0,0.00022479,2]
[311610505,1705265439109,-300.0,0.00022479,2]
[311610507,1705265439118,-300.0,0.00022479,2]
[311610508,1705265439128,-300.0,0.00022479,2]
[311610511,1705265439137,-300.0,0.00022479,2]
[311610513,1705265439146,-300.0,0.00022479,2]
[311610515,1705265439155,-300.0,0.00022479,2]
[311610517,1705265439164,-509.02,0.00022499,2]
[311610519,1705265439173,-3457.10928421,0.000225,2]
[311610521,1705265439182,-15050.12819721,0.000225,2]
[311610523,1705265439192,-153.23,0.00022528,2]
[311610525,1705265439201,-151.49,0.00022528,2]
[311610527,1705265439210,-189.42,0.00022579,2]
[311610529,1705265439219,-382.42,0.000226,2]
[311610531,1705265439228,-150.0,0.000226,2]
[311610533,1705265439237,-408.24,0.000226,2]
[311610535,1705265439246,-150.0,0.000226,2]
[311610537,1705265439255,-408.24,0.000226,2]
[311610539,1705265439264,-150.0,0.000226,2]
[311610541,1705265439273,-408.24,0.000226,2]
[311610543,1705265439283,-150.0,0.000226,2]
[311610545,1705265439291,-150.0,0.000226,2]
[311610547,1705265439300,-150.0,0.000226,2]
[311610548,1705265439309,-408.24,0.000226,2]
[311610551,1705265439319,-401.38,0.000226,2]
[311610553,1705265439329,-296.20990573,0.0002261,2]
[311610555,1705265439339,-509.02,0.00022611,2]
[311610557,1705265439348,-153.23,0.00022668,2]
[311610559,1705265439357,-509.02,0.00022724,2]
[311610561,1705265439367,-235.07020258,0.00022757,2]
[311610562,1705265439376,-150.0,0.00022765,2]
[311610564,1705265439385,-155.0,0.00022766,2]
[311610566,1705265439394,-189.42,0.00022792,2]
[311610567,1705265439403,-509.02,0.00022836,2]
[311610569,1705265439413,-150.00000001,0.000229,2]
[311610571,1705265439423,-509.02,0.00022949,2]
[311610573,1705265439432,-300.0,0.00022996,2]
[311610575,1705265439442,-300.0,0.00022996,2]
[311610577,1705265439451,-300.0,0.00022996,2]
[311610579,1705265439460,-300.0,0.00022996,2]
[311610581,1705265439470,-192.83329262,0.00022999,2]
[311610583,1705265439479,-150.0,0.00023,2]
[311610585,1705265439488,-189.42,0.00023005,2]
[311610587,1705265439497,-509.02,0.00023061,2]
[311610589,1705265439506,-151.49,0.00023065,2]
[311610591,1705265439515,-509.02,0.00023174,2]
[311610593,1705265439524,-189.42,0.00023218,2]
[311610595,1705265439533,-4209.29116583,0.0002323,3]
[311610597,1705265439543,-1000.0,0.0002323,3]
[311610599,1705265439552,-848.86946791,0.00023238,3]
[311610601,1705265439561,-855.60476657,0.00023238,3]
[311610603,1705265439571,-500.0,0.00023241,2]
[311610605,1705265439584,-278.65719382,0.00023247,3]
[311610607,1705265439594,-929.27751191,0.00023247,3]
[311610609,1705265439603,-839.42039372,0.00023256,3]
[311610611,1705265439613,-435.13712423,0.00023273,3]
[311610613,1705265439622,-881.49965915,0.00023273,3]
[311610615,1705265439631,-609.51468926,0.00023273,3]
[311610617,1705265439640,-220.89880446,0.00023273,3]
[311610619,1705265439649,-509.02,0.00023286,2]
[311610621,1705265439658,-200.0,0.00023347,2]
[311610623,1705265439668,-813.9,0.00023354,2]
[311610625,1705265439677,-3668.47149155,0.00023385,2]
[311610627,1705265439686,-509.02,0.00023399,2]
[311610629,1705265439696,-189.42,0.00023431,2]
[311610631,1705265439705,-205.0,0.00023485,5]
[311610633,1705265439717,-509.02,0.00023511,2]
[311610635,1705265439725,-151.49,0.00023601,2]
[311610637,1705265439734,-189.42,0.00023644,2]
[311610639,1705265439743,-500.0,0.00023665,2]
[311610641,1705265439752,-157.81,0.00023775,2]
[311610642,1705265439762,-189.42,0.00023857,2]
[311610644,1705265439771,-200.0,0.00023877,2]
[311610646,1705265439780,-218.08401277,0.00024,2]
[311610649,1705265439790,-430.99724455,0.00024,2]
[311610650,1705265439801,-492.04,0.00024004,2]
[311610652,1705265439810,-189.42,0.0002407,2]
[311610654,1705265439819,-500.0,0.0002409,2]
[311610656,1705265439828,-150.0,0.00024135,2]
[311610658,1705265439838,-189.42,0.00024283,2]
[311610668,1705265439915,-150.13,0.00024287,2]
[311610670,1705265439925,-167.94,0.00024297,2]
[311610672,1705265439934,-813.9,0.00024333,2]
[311610674,1705265439943,-200.0,0.00024408,2]
[311610676,1705265439952,-189.42,0.00024496,2]
[311610678,1705265439961,-500.0,0.00024514,2]
[311610680,1705265439970,-250.0,0.00024658,2]
[311610682,1705265439979,-189.42,0.00024709,2]
[311610684,1705265439988,-3668.47149155,0.00024767,2]
[311610686,1705265439996,-929.47,0.00024774,2]
[311610688,1705265440005,-313.84,0.00024795,2]
[311610690,1705265440014,-200.0,0.00024899,2]
[311610692,1705265440023,-800.0,0.00024899,2]
[311610694,1705265440033,-189.42,0.00024922,2]
[311610696,1705265440042,-500.0,0.00024939,2]
[311610698,1705265440051,-200.0,0.00024939,2]
[311610699,1705265440060,-241.41404965,0.00025,2]
[311610701,1705265440069,-1070.01161759,0.00025,2]
[311610703,1705265440078,-1583.00550367,0.00025,2]
[311610705,1705265440088,-666.86432543,0.00025,2]
[311610707,1705265440097,-508.43471138,0.00025,2]
[311610709,1705265440106,-350.0,0.00025,3]
[311610711,1705265440115,-189.42,0.00025135,2]
[311610713,1705265440124,-157.81,0.00025177,2]
[311610715,1705265440133,-169.66136031,0.00025228,2]
[311610717,1705265440142,-813.9,0.00025311,2]
[311610719,1705265440151,-189.42,0.00025348,2]
[311610721,1705265440160,-189.42,0.00025561,2]
[311610723,1705265440169,-205.0,0.00025633,8]
[311610725,1705265440178,-313.84,0.00025698,2]
[311610727,1705265440187,-150.0,0.00026079,2]
[311610729,1705265440196,-3668.47149155,0.0002615,3]